Workbook

Sheet Input
A1: Gas PVT Properties
A3: Gas Z-factor calculted from Hall-Yarborough approximation to Standing-Katz chart
A4: Gas viscosities calculated from Lee-Gonzales correlation
A6: Curtis H. Whitson
A7: Sheet 1 - Average Gas Properties
A10: red | B10: Input (different for each application of spreadsheet)
A11: pink | B11: Optional Input (different for each application of spreadsheet)
A12: green | B12: Input (same for each application of spreadsheet)
A13: blue | B13: Important Calculated Results
A14: purple | B14: Linked to another cell
A16: Temperature | C16: =(220-32)*5/9 -> 104.4444444 | D16: C
A17: Input Specific Gravity | C17: 0
A18: Specific Gravity | C18: =IF(C17=0,$C$38/28.97,C17) -> 0.7521032793 | D18: air=1 | E18: Sutton Correlations:
A19: Tpc | C19: =IF(C17=0,$E$38,E19) -> 214.1842746 | D19: K | E19: =(1/1.8)*(169.2+349.5*$C$18-74*$C$18^2) -> 216.7785026 | F19: K
A20: Ppc | C20: =IF(C17=0,$F$38,E20) -> 45.69731773 | D20: bara | E20: =(1/14.50377)*(756.8-131*$C$18-3.6*$C$18^2) -> 45.24603581 | F20: bara
A23: Comp. | B23: yi | C23: Mi | D23: SGi | E23: Tci | F23: Pci
B24: mol-% | C24: kg/kmol | D24: water=1 | E24: K | F24: bara
A26: N2 | B26: 3.35 | C26: 28.01 | D26: 469.5 | E26: 126.3 | F26: 33.99
A27: CO2 | B27: =1.76+0.51 -> 2.27 | C27: 44.01 | D27: 499.5 | E27: 304.2 | F27: 73.82
A28: C1 | B28: 83.27 | C28: 16.04 | D28: 329.7 | E28: 190.6 | F28: 46.04
A29: C2 | B29: 5.16 | C29: 30.07 | D29: 449.6 | E29: 305.4 | F29: 48.8
A30: C3 | B30: 1.91 | C30: 44.1 | D30: 507.2 | E30: 369.8 | F30: 42.49
A31: iC4 | B31: 0.41 | C31: 58.12 | D31: 560.7 | E31: 408.2 | F31: 36.48
A32: nC4 | B32: 0.7 | C32: 58.12 | D32: 583.8 | E32: 425.2 | F32: 37.97
A33: iC5 | B33: 0.28 | C33: 72.15 | D33: 626.8 | E33: 460.4 | F33: 33.81
A34: nC5 | B34: 0.28 | C34: 72.15 | D34: 629.5 | E34: 469.7 | F34: 33.69
A35: C6 | B35: 0.39 | C35: 82.32 | D35: 659.7 | E35: 507.4 | F35: 30.12
A36: C7+ | B36: 1.98 | C36: 137.9 | D36: 780 | E36: =(1/1.8)*(608+364*LOG(C36-71.2)+(2450*LOG(C36)-3800)*LOG(D36/1000)) -> 620.2163941 | F36: =(1/14.50377)*(1188-431*LOG(C36-61.1)+(2319-852*LOG(C36-53.7))*(D36/1000-0.8)) -> 24.94776408
A38: Total | B38: =SUM(B26:B36) -> 100 | C38: =SUMPRODUCT($B26:$B36,C26:C36)/SUM($B26:$B36) -> 21.788432 | E38: =SUMPRODUCT($B26:$B36,E26:E36)/SUM($B26:$B36) -> 214.1842746 | F38: =SUMPRODUCT($B26:$B36,F26:F36)/SUM($B26:$B36) -> 45.69731773

Sheet Calcs-SI
A1: Gas PVT Properties
A3: © Curtis H. Whitson
A4: Sheet 2 - Gas PVT f(p)
A7: Gravity | B7: =Input!$C$18 -> 0.7521032793 | C7: (air=1) | F7: Lee et al.
A8: Tpc | B8: =Input!$C$19 -> 214.1842746 | C8: K | F8: A1 | G8: =0.0001*(9.379+0.46555*$B$7)*($B$10*1.8)^1.5/(209.2+558*$B$7+$B$10*1.8) -> 0.01317447968
A9: Ppc | B9: =Input!$C$20 -> 45.69731773 | C9: bara | F9: A2 | G9: =3.448+(986.4/(1.8*$B$10))+0.29231*$B$7 -> 5.119139849
A10: TR | B10: =Input!C16+273.15 -> 377.5944444 | C10: K | F10: A3 | G10: =2.447-0.2224*G9 -> 1.308503298
A11: Tpr | B11: =$B$10/$B$8 -> 1.762941958
G15: Lee et al.
E16: Inverse | F16: Density | G16: Viscosity | L16: Delta pp
A17: p | B17: ppr | C17: Z | D17: Bg | E17: bg=1/Bg | F17: dg | G17: ug | H17: ugZ | I17: p/Z | J17: p/uZ | K17: 1/ugBg | L17: 2(p/uZ)dp | M17: pp | N17: cg | O17: dZ/dp
A18: bara | D18: m3/Sm3 | E18: Sm3/m3 | F18: g/cm3 | G18: mPa-s | H18: mPa-s | I18: bara | J18: bara/mPa-s | K18: 1/mPa-s | L18: bar2/mPa-s | M18: bar2/mPa-s | N18: 1/bar | O18: 1/bar
A20: 1000 | B20: =A20/$B$9 -> 21.88312246 | C20: =Zfac($B$11,B20) -> 1.82830149 | D20: =(1.0135/(273.15+15.56))*(C20*$B$10/A20) -> 0.002423457095 | E20: =1/D20 -> 412.6336721 | F20: =deng_kgm3(A20,Input!$C$16,$B$7*28.97,C20)/1000 -> 0.379600589 | G20: =visg_cp(F20*1000,Input!$C$16,$B$7*28.97) -> 0.05567717254 | H20: =G20*C20 -> 0.1017946575 | I20: =A20/C20 -> 546.9557432 | J20: =I20/G20 -> 9823.698264 | K20: =1/G20/D20 -> 7411.182236 | L20: =2*0.5*(J20+J21)*(A20-A21) -> 989256.7312 | M20: =M21+L20 -> 20175558.93 | N20: =cg(A20,C20,O20) -> 0.0003095217877 | O20: =dzdp($B$11,B20,$B$9,C20) -> 0.001262402344
A21: 950 | B21: 20.78896634 | C21: =Zfac($B$11,B21) -> 1.76503109 | D21: =(1.0135/(273.15+15.56))*(C21*$B$10/A21) -> 0.002462727027 | E21: 406.0539349 | F21: =deng_kgm3(A21,Input!$C$16,$B$7*28.97,C21)/1000 -> 0.3735475879 | G21: =visg_cp(F21*1000,Input!$C$16,$B$7*28.97) -> 0.05403178074 | H21: =G21*C21 -> 0.09536777285 | I21: =A21/C21 -> 538.2341452 | J21: =I21/G21 -> 9961.43636 | K21: =1/G21/D21 -> 7515.094439 | L21: =2*0.5*(J21+J22)*(A21-A22) -> 1003347.578 | M21: 19186302.2 | N21: =cg(A21,C21,O21) -> 0.0003340105192 | O21: =dzdp($B$11,B21,$B$9,C21) -> 0.001268388512
A22: 900 | B22: 19.69481021 | C22: 1.7014662 | D22: 0.002505926559 | E22: 399.0539932 | F22: =deng_kgm3(A22,Input!$C$16,$B$7*28.97,C22)/1000 -> 0.3671080213 | G22: =visg_cp(F22*1000,Input!$C$16,$B$7*28.97) -> 0.05234325466 | H22: 0.08906027863 | I22: 528.955556 | J22: 10105.51521 | K22: 7623.790224 | L22: 1018089.279 | M22: 18182954.63 | N22: 0.0003622514386 | O22: 0.001274159422
A23: 850 | B23: 18.60065409 | C23: 1.63762141 | D23: 0.002553771901 | E23: 391.5776501 | F23: =deng_kgm3(A23,Input!$C$16,$B$7*28.97,C23)/1000 -> 0.3602301913 | G23: =visg_cp(F23*1000,Input!$C$16,$B$7*28.97) -> 0.05060762509 | H23: 0.08287613037 | I23: 519.0454855 | J23: 10256.27037 | K23: 7737.522744 | L23: 1033512.599 | M23: 17164865.35 | N23: 0.000395122707 | O23: 0.001279552019
A24: 800 | B24: 17.50649797 | C24: 1.57352118 | D24: 0.00260717467 | E24: 383.5569635 | F24: =deng_kgm3(A24,Input!$C$16,$B$7*28.97,C24)/1000 -> 0.3528515949 | G24: =visg_cp(F24*1000,Input!$C$16,$B$7*28.97) -> 0.04882031618 | H24: 0.07681980151 | I24: 508.4138747 | J24: 10413.98161 | K24: 7856.503062 | L24: 1049639.757 | M24: 16131352.75 | N24: 0.0004337858929 | O24: 0.001284330185
A25: 750 | B25: 16.41234185 | C25: 1.509204301 | D25: 0.002667314912 | E25: 374.9088627 | F25: =deng_kgm3(A25,Input!$C$16,$B$7*28.97,C25)/1000 -> 0.3448958114 | G25: =visg_cp(F25*1000,Input!$C$16,$B$7*28.97) -> 0.0469760252 | H25: 0.07089641926 | I25: 496.9506115 | J25: 10578.81354 | K25: 7980.855364 | L25: 1066476.395 | M25: 15081712.99 | N25: 0.0004798050214 | O25: 0.001288148599
A26: 700 | B26: 15.31818572 | C26: 1.444730694 | D26: 0.002735749837 | E26: 365.5304979 | F26: =deng_kgm3(A26,Input!$C$16,$B$7*28.97,C26)/1000 -> 0.3362682246 | G26: =visg_cp(F26*1000,Input!$C$16,$B$7*28.97) -> 0.04506857402 | H26: 0.06511195225 | I26: 484.5193659 | J26: 10750.71436 | K26: 8110.540567 | L26: 1083997.762 | M26: 14015236.6 | N26: 0.0005353284146 | O26: 0.0012904956
A27: 650 | B27: 14.2240296 | C27: 1.380191883 | D27: 0.002814580241 | E27: 355.2927664 | F27: =deng_kgm3(A27,Input!$C$16,$B$7*28.97,C27)/1000 -> 0.3268500671 | G27: =visg_cp(F27*1000,Input!$C$16,$B$7*28.97) -> 0.04309073382 | H27: 0.05947348105 | I27: 470.9490093 | J27: 10929.24087 | K27: 8245.224317 | L27: 1102124.584 | M27: 12931238.83 | N27: 0.0006033736021 | O27: 0.00129060078
A28: 600 | B28: 13.12987348 | C28: 1.315727329 | D28: 0.002906713096 | E28: 344.0312019 | F28: =deng_kgm3(A28,Input!$C$16,$B$7*28.97,C28)/1000 -> 0.3164900388 | G28: =visg_cp(F28*1000,Input!$C$16,$B$7*28.97) -> 0.04103403638 | H28: 0.05398960309 | I28: 456.0215379 | J28: 11113.2508 | K28: 8384.044861 | L28: 1120680.177 | M28: 11829114.25 | N28: 0.0006882860494 | O28: 0.001287282116
A29: 550 | B29: 12.03571735 | C29: 1.251551028 | D29: 0.003016292082 | E29: 331.5328797 | F29: =deng_kgm3(A29,Input!$C$16,$B$7*28.97,C29)/1000 -> 0.3049922606 | G29: =visg_cp(F29*1000,Input!$C$16,$B$7*28.97) -> 0.03888858381 | H29: 0.04867104705 | I29: 439.4547147 | J29: 11300.35274 | K29: 8525.198072 | L29: 1139312.38 | M29: 10708434.07 | N29: 0.0007965008207 | O29: 0.001278685903
A30: 500 | B30: 10.94156123 | C30: 1.187995296 | D30: 0.003149432023 | E30: 317.5175691 | F30: =deng_kgm3(A30,Input!$C$16,$B$7*28.97,C30)/1000 -> 0.2920989352 | G30: =visg_cp(F30*1000,Input!$C$16,$B$7*28.97) -> 0.03664295143 | H30: 0.04353165395 | I30: 420.8770872 | J30: 11485.89485 | K30: 8665.174521 | L30: 1157347.522 | M30: 9569121.693 | N30: 0.0009378456348 | O30: 0.00126183439
A31: 450 | B31: 9.847405107 | C31: 1.125585117 | D31: 0.003315532966 | E31: 301.610634 | F31: =deng_kgm3(A31,Input!$C$16,$B$7*28.97,C31)/1000 -> 0.2774654181 | G31: =visg_cp(F31*1000,Input!$C$16,$B$7*28.97) -> 0.03428438047 | H31: 0.0385899884 | I31: 399.7920666 | J31: 11661.05559 | K31: 8797.319067 | L31: 1173509.692 | M31: 8411774.171 | N31: 0.001127837193 | O31: 0.0012318235
A32: 400 | B32: 8.753248984 | C32: 1.065166762 | D32: 0.003529759673 | E32: 283.3054068 | F32: =deng_kgm3(A32,Input!$C$16,$B$7*28.97,C32)/1000 -> 0.2606256023 | G32: =visg_cp(F32*1000,Input!$C$16,$B$7*28.97) -> 0.03179978459 | H32: 0.0338720736 | I32: 375.5280527 | J32: 11809.13825 | K32: 8909.035405 | L32: 829139.8894 | M32: 7238264.479 | N32: 0.001391820599 | O32: 0.001180395864
A33: 365 | B33: 7.987339698 | C33: 1.02477223 | D33: 0.003721534128 | E33: 268.7063898 | F33: =deng_kgm3(A33,Input!$C$16,$B$7*28.97,C33)/1000 -> 0.2471952988 | G33: =visg_cp(F33*1000,Input!$C$16,$B$7*28.97) -> 0.02997975875 | H33: 0.03072242424 | I33: 356.1767085 | J33: 11880.57287 | K33: 8962.927022 | L33: 1543582.8 | M33: 6409124.589 | N33: 0.001642444495 | O33: 0.001124463643
A34: 300 | B34: 6.564936738 | C34: 0.9567902933 | D34: 0.004227494276 | E34: 236.5467425 | F34: =deng_kgm3(A34,Input!$C$16,$B$7*28.97,C34)/1000 -> 0.2176101682 | G34: =visg_cp(F34*1000,Input!$C$16,$B$7*28.97) -> 0.02642219325 | H34: 0.02528049803 | I34: 313.5483314 | J34: 11866.85482 | K34: 8952.577869 | L34: 1173237.116 | M34: 4865541.789 | N34: 0.002342759095 | O34: 0.0009477718158
A35: 250 | B35: 5.470780615 | C35: 0.914909502 | D35: 0.004850937192 | E35: 206.1457323 | F35: =deng_kgm3(A35,Input!$C$16,$B$7*28.97,C35)/1000 -> 0.1896428884 | G35: =visg_cp(F35*1000,Input!$C$16,$B$7*28.97) -> 0.02356041735 | H35: 0.0215556497 | I35: 273.2510696 | J35: 11597.88749 | K35: 8749.663866 | L35: 1124149.209 | M35: 3692304.673 | N35: 0.003225498528 | O35: 0.0007085987562
A36: 200 | B36: 4.376624492 | C36: 0.888073559 | D36: 0.005885813088 | E36: 169.9000605 | F36: =deng_kgm3(A36,Input!$C$16,$B$7*28.97,C36)/1000 -> 0.156298837 | G36: =visg_cp(F36*1000,Input!$C$16,$B$7*28.97) -> 0.02068944137 | H36: 0.01837374583 | I36: 225.2065698 | J36: 10885.0967 | K36: 8211.921121 | L36: 1016251.277 | M36: 2568155.464 | N36: 0.004614508724 | O36: 0.0003423446091
A37: 150 | B37: 3.282468369 | C37: 0.8826112309 | D37: 0.007799481145 | E37: 128.213657 | F37: =deng_kgm3(A37,Input!$C$16,$B$7*28.97,C37)/1000 -> 0.1179496076 | G37: =visg_cp(F37*1000,Input!$C$16,$B$7*28.97) -> 0.01800334023 | H37: 0.01588995028 | I37: 169.9502507 | J37: 9439.928843 | K37: 7121.659386 | L37: 823988.5798 | M37: 1551904.187 | N37: 0.006821212621 | O37: -0.0001364039949
A38: 100 | B38: 2.188312246 | C38: 0.9018571217 | D38: 0.01195433058 | E38: 83.65169372 | F38: =deng_kgm3(A38,Input!$C$16,$B$7*28.97,C38)/1000 -> 0.07695501933 | G38: =visg_cp(F38*1000,Input!$C$16,$B$7*28.97) -> 0.01575067979 | H38: 0.01420486274 | I38: 110.882309 | J38: 7039.842752 | K38: 5310.98942 | L38: 539972.4279 | M38: 727915.6075 | N38: 0.01069102515 | O38: -0.000623205957
A39: 50 | B39: 1.094156123 | C39: 0.9430858952 | D39: 0.02500165554 | E39: 39.99735131 | F39: =deng_kgm3(A39,Input!$C$16,$B$7*28.97,C39)/1000 -> 0.03679539297 | G39: =visg_cp(F39*1000,Input!$C$16,$B$7*28.97) -> 0.01410186144 | H39: 0.01329926662 | I39: 53.01744014 | J39: 3759.605806 | K39: 2836.31714 | L39: 187943.1796 | M39: 187943.1796 | N39: 0.02106369594 | O39: -0.001003156635
A40: 1 | B40: 0.02188312246 | C40: 0.9987463307 | D40: 1.323862008 | E40: 0.7553657361 | F40: =deng_kgm3(A40,Input!$C$16,$B$7*28.97,C40)/1000 -> 0.0006948954914 | G40: =visg_cp(F40*1000,Input!$C$16,$B$7*28.97) -> 0.01317973726 | H40: 0.01316321423 | I40: 1.001255243 | J40: 75.96928701 | K40: 57.31265509 | L40: 0 | M40: =L40 -> 0 | N40: 1.001253141 | O40: -0.001251569733
A42: =5300/14.5 -> 365.5172414
